bitfinex-derivatives/quotes_SOLF0:USTF0_20250228
["timestamp","ask_amount","ask_price","bid_price","bid_amount"]
[1740734384428,7.619,131.36,131.34,0.05128905]
[1740734384638,0.05822477,131.37,131.34,22.83144759]
[1740734384832,7.6186,131.36,131.34,22.83144759]
[1740734385233,7.6191,131.35,131.34,22.83144759]
[1740734385429,7.6191,131.35,131.34,0.05128905]
[1740734386337,0.05822477,131.37,131.3,22.78015854]
[1740734386542,29.4024,131.4,131.3,22.78015854]
[1740734387442,0.05505746,131.36,131.34,0.05205424]
[1740734387836,7.6193,131.35,131.34,22.83221278]
[1740734388635,7.6193,131.35,131.34,0.05205424]
[1740734390938,7.6193,131.35,131.34,5.424e-05]
[1740734401146,0.05505746,131.36,131.34,5.424e-05]
[1740734401744,7.67365746,131.36,131.34,5.424e-05]
[1740734401951,0.05505746,131.36,131.34,22.78021278]
[1740734402149,7.6191,131.35,131.34,22.78021278]
[1740734402344,7.6191,131.35,131.34,5.424e-05]
[1740734406554,0.05505746,131.36,131.34,5.424e-05]
[1740734406946,0.05505746,131.36,131.34,22.78021278]
[1740734407347,0.05505746,131.36,131.34,5.424e-05]
[1740734407952,0.05505746,131.36,131.34,22.78021278]
[1740734408655,0.05505746,131.36,131.34,18.22916357]
[1740734409454,7.6191,131.35,131.34,18.22916357]
[1740734409650,7.6191,131.35,131.34,18.28110766]
[1740734411456,0.05505746,131.36,131.34,0.05194409]
[1740734412254,0.05505746,131.36,131.34,18.28110766]
[1740734413751,7.6191,131.35,131.34,18.28110766]
[1740734415558,0.05505746,131.36,131.34,0.05194409]
[1740734417061,0.05505746,131.36,131.34,7.67154409]
[1740734417756,0.05505746,131.36,131.34,0.05194409]
[1740734417960,12.77505746,131.36,131.34,4.409e-05]
[1740734418862,7.6191,131.35,131.34,4.409e-05]
[1740734422570,7.6191,131.35,131.34,18.22920766]
[1740734422969,7.6191,131.35,131.34,4.409e-05]
[1740734423568,9.7147,131.35,131.34,4.409e-05]
[1740734426970,7.6191,131.35,131.34,4.409e-05]
[1740734428477,7.67375746,131.36,131.34,4.409e-05]
[1740734429481,0.05505746,131.36,131.34,4.409e-05]
[1740734429680,7.6191,131.35,131.34,18.22920766]
[1740734430477,7.6219,131.31,131.25,2.1142]
[1740734430684,2.129,131.4,131.25,8.48630766]
[1740734430886,2.129,131.4,131.26,7.624]
[1740734431082,2.129,131.4,131.26,16.05910766]
[1740734431383,2.129,131.4,131.26,8.43510766]
[1740734431579,0.04954675,131.34,131.26,8.43510766]
[1740734431782,35.6,131.34,131.26,8.43510766]
[1740734431978,0.05173734,131.31,131.26,6.37210766]
[1740734432181,7.6238,131.27,131.26,6.37210766]
[1740734432975,0.0529435,131.28,131.2,2.1747]
[1740734433180,7.6261,131.23,131.19,41.34416917]
[1740734433483,0.05016782,131.25,131.19,41.34416917]
[1740734433784,0.05445765,131.23,131.19,41.34416917]
[1740734435686,7.68115765,131.23,131.19,41.34416917]
[1740734435885,0.05445765,131.23,131.19,41.34416917]
[1740734436582,7.6269,131.22,131.16,2.213]
[1740734436788,6.5935,131.26,131.16,2.213]
[1740734436989,0.05711292,131.2,131.16,2.213]
[1740734437795,0.05711292,131.2,131.18,7.629]
[1740734438795,0.05711292,131.2,131.17,7.6294]
[1740734439588,0.05711292,131.2,131.16,2.213]
[1740734439794,0.05711292,131.2,131.18,7.629]
[1740734440195,0.05711292,131.2,131.16,2.213]
[1740734440496,0.05711292,131.2,131.17,7.6292]
[1740734441095,0.05711292,131.2,131.18,7.629]
[1740734441490,0.05711292,131.2,131.16,2.213]
[1740734441690,0.05711292,131.2,131.19,7.6284]
[1740734442098,192.2246,131.33,131.16,2.213]
[1740734442297,12.72,131.31,131.16,2.213]
[1740734442499,12.72,131.31,131.16,14.933]
[1740734442794,7.6232,131.28,131.16,14.933]
[1740734442999,12.72,131.31,131.16,14.933]
[1740734443389,2.2089,131.33,131.22,0.05018357]
[1740734443591,0.04889762,131.24,131.22,0.05018357]
[1740734443795,0.04889762,131.24,131.16,14.933]
[1740734443796,2.2089,131.33,131.16,14.933]
[1740734444496,2.2089,131.33,131.19,7.6283]
[1740734444696,35.6,131.29,131.16,2.213]
[1740734444896,0.05651814,131.26,131.23,0.04875863]
[1740734445096,7.6255,131.24,131.23,0.04875863]
[1740734445996,7.6251,131.25,131.23,0.04875863]
[1740734446202,0.05651814,131.26,131.23,0.04875863]
[1740734446799,7.6255,131.24,131.23,0.04875863]
[1740734447403,0.05651814,131.26,131.23,0.04875863]
[1740734447404,7.6251,131.25,131.23,0.04875863]
[1740734447594,0.05651814,131.26,131.23,0.04875863]
[1740734447901,7.68131814,131.26,131.23,0.04875863]
[1740734448797,0.05651814,131.26,131.23,0.04875863]
[1740734448997,7.6251,131.25,131.23,0.04875863]
[1740734449597,7.6255,131.24,131.23,0.04875863]
[1740734450903,7.6255,131.24,131.23,5.863e-05]
[1740734453704,12.72,131.24,131.15,7.28641291]
[1740734454002,7.6286,131.19,131.15,7.28641291]
[1740734455006,0.04966845,131.18,131.16,0.05021072]
[1740734455903,7.6296,131.17,131.16,0.05021072]
[1740734457404,7.6296,131.17,131.16,1.072e-05]
[1740734459406,0.04966845,131.18,131.16,1.072e-05]
[1740734463210,7.6296,131.17,131.16,1.072e-05]
[1740734464315,12.0854,131.17,131.16,1.072e-05]
[1740734464512,14.3631,131.17,131.16,1.072e-05]
[1740734464811,37.2431,131.17,131.16,1.072e-05]
[1740734466217,14.3631,131.17,131.16,1.072e-05]
[1740734467618,37.2431,131.17,131.16,1.072e-05]
[1740734467820,41.0631,131.17,131.16,1.072e-05]
[1740734468719,22.88,131.15,130.98,2.1047]
[1740734468920,22.88,131.13,130.98,2.1047]
[1740734469717,0.05532634,131.07,130.98,2.1047]
[1740734469916,35.6,131.06,130.97,12.45770622]
[1740734470121,4.3329,131.05,130.97,10.29840622]
[1740734470419,0.05559592,131.03,130.97,10.29840622]
[1740734471022,12.77559592,131.03,130.97,10.29840622]
[1740734471218,7.6396,131.0,130.94,11.9084]
[1740734471525,12.72,131.03,130.94,4.2656]
[1740734471826,0.05859846,130.98,130.94,4.2656]
[1740734472014,4.3329,131.05,130.94,4.2656]
[1740734472324,17.0529,131.05,130.94,4.2656]
[1740734472918,7.6394,131.01,130.94,4.2656]
[1740734473319,0.05813788,130.99,130.96,0.05021562]
[1740734473523,7.69873788,130.99,130.96,0.05021562]
[1740734473723,7.6406,130.99,130.94,4.2656]
[1740734473926,7.69616141,130.99,130.96,0.05261471]
[1740734474926,7.6407,130.98,130.96,0.05261471]
[1740734475131,0.05556141,130.99,130.96,0.05261471]
[1740734475925,7.69566141,130.99,130.96,0.05261471]
[1740734476121,0.05556141,130.99,130.96,0.05261471]
[1740734476722,7.69606141,130.99,130.96,0.05261471]
[1740734477223,0.05556141,130.99,130.96,0.05261471]
[1740734478325,0.05556141,130.99,130.98,7.6407]
[1740734478823,0.05556141,130.99,130.96,0.05261471]
[1740734479026,0.05556141,130.99,130.97,7.5861206]
[1740734479526,0.05556141,130.99,130.96,7.69431471]
[1740734479826,0.05556141,130.99,130.96,0.05261471]
[1740734480024,0.05556141,130.99,130.97,7.6408]
[1740734480221,0.05556141,130.99,130.96,0.05261471]
[1740734480721,0.05556141,130.99,130.98,7.6407]
[1740734487732,0.05556141,130.99,130.96,0.05261471]
[1740734488331,0.05556141,130.99,130.97,7.6408]
[1740734489134,0.05556141,130.99,130.96,7.69421471]
[1740734489434,0.05556141,130.99,130.96,0.05261471]
[1740734489634,0.05556141,130.99,130.97,7.6409]
[1740734490332,0.05556141,130.99,130.98,7.6407]
[1740734492441,4.3329,131.05,130.98,3.82]
[1740734492734,4.3329,131.05,130.92,2.1593]
[1740734493733,0.05271416,131.0,130.97,0.0490536]
[1740734493938,0.05271416,131.0,130.92,2.1593]
[1740734494125,4.3329,131.05,130.97,0.04938031]
[1740734494329,11.9697,131.05,130.92,2.1593]
[1740734494526,0.05286182,131.02,131.0,0.05360711]
[1740734494735,0.05286182,131.02,130.92,2.1593]
[1740734495031,4.3329,131.05,130.92,2.1593]
[1740734495032,4.3329,131.05,131.0,0.05382406]
[1740734495237,0.0512686,130.98,130.92,2.1593]
[1740734495538,207.48,131.08,130.92,5.9793]
[1740734495731,207.48,131.08,131.04,7.6371]
[1740734496033,207.48,131.08,130.96,12.74]
[1740734496235,207.48,131.08,131.02,7.6383]
[1740734496530,0.05317251,131.06,131.04,0.05235961]
[1740734500837,0.05317251,131.06,130.99,2.1828]
[1740734501234,0.05317251,131.06,131.02,7.6379]
[1740734501539,7.68917251,131.06,131.02,7.6379]
[1740734501733,0.05317251,131.06,130.99,2.1828]
[1740734501938,0.05317251,131.06,131.03,0.049786]
[1740734502240,7.68957251,131.06,131.03,0.049786]
[1740734502434,0.05317251,131.06,131.03,0.049786]
[1740734502635,7.6366,131.05,131.03,0.049786]
[1740734503936,7.6372,131.04,131.03,0.049786]
[1740734504536,7.6384,131.02,130.94,4.4663]
[1740734505041,7.6384,131.02,130.98,7.6406]
[1740734505340,7.6392,131.01,130.94,4.4663]
[1740734505542,7.6392,131.01,130.97,7.6409]
[1740734505743,0.04862264,130.99,130.97,7.6409]
[1740734505946,6.6284,131.05,130.94,4.4663]
[1740734506137,0.049406,130.99,130.98,7.6402]
[1740734506337,6.6284,131.05,130.98,7.6402]
[1740734506537,0.04983657,131.0,130.97,0.0534682]
[1740734506838,0.0544142,131.0,130.97,0.0493726]
[1740734507643,0.0544142,131.0,130.98,7.6407]
[1740734507844,0.0544142,131.0,130.97,0.0493726]
[1740734508240,0.0544142,131.0,130.97,7.6904726]
[1740734509041,7.6941142,131.0,130.97,0.0493726]
[1740734509441,0.0544142,131.0,130.97,0.0493726]
[1740734509642,0.0544142,131.0,130.97,7.6905726]
[1740734509942,0.0544142,131.0,130.97,0.0493726]
[1740734510747,0.0544142,131.0,130.99,7.6401]
[1740734511043,215.115,131.08,131.03,7.6374]
[1740734511340,215.115,131.08,130.94,4.4663]
[1740734511539,215.115,131.08,130.94,199.4663]
[1740734511737,7.6355,131.07,130.94,199.4663]
[1740734512046,207.48,131.08,130.94,199.4663]
[1740734512239,0.05462472,131.02,130.99,0.05731478]
[1740734512441,207.48,131.08,130.94,4.4663]
[1740734512740,0.05523197,131.02,130.99,0.05519545]
[1740734512947,7.6381,131.03,130.94,4.4663]
[1740734513138,0.05820174,131.02,130.99,0.05049594]
[1740734513446,7.6387,131.02,130.97,7.6408]
[1740734513641,0.05245593,131.02,130.99,0.05634948]
[1740734514042,7.6394,131.01,130.99,0.05634948]
[1740734514243,0.05245593,131.02,130.99,0.05634948]
[1740734514747,0.05245593,131.02,130.99,7.69604948]
[1740734514942,0.05245593,131.02,130.99,0.05634948]
[1740734515748,0.05245593,131.02,131.01,7.6389]
[1740734520752,7.6358,131.07,130.99,0.05634948]
[1740734520950,7.6358,131.07,130.97,12.72]
[1740734521248,207.48,131.08,130.97,12.72]
[1740734521249,215.1151,131.08,130.97,12.72]
[1740734521848,0.05015245,131.04,131.01,0.05562637]
[1740734523046,0.05015245,131.04,131.02,7.6381]
[1740734523249,0.05015245,131.04,131.01,0.05562637]
[1740734523854,0.05015245,131.04,131.01,7.69402637]
[1740734525555,0.05015245,131.04,131.02,7.6382]
[1740734525958,0.05015245,131.04,131.01,0.05562637]
[1740734526658,0.05015245,131.04,131.03,7.6377]
[1740734527961,7.6345,131.09,131.01,0.05562637]
[1740734528259,7.635,131.08,131.04,7.6368]
[1740734528452,4.3718,131.11,130.97,12.72]
[1740734528656,4.3718,131.11,131.03,7.6374]
[1740734528960,7.6352,131.08,131.03,7.6374]
[1740734529154,7.68570289,131.08,131.06,0.04916733]
[1740734531160,0.05050289,131.08,131.06,0.04916733]
[1740734532455,7.6354,131.07,131.06,0.04916733]
[1740734532749,9.801,131.07,131.06,0.04916733]
[1740734533651,2.1656,131.07,131.06,0.04916733]
[1740734534453,0.05050289,131.08,131.06,0.04916733]
[1740734537461,4.4732,131.15,131.06,3.86916733]
[1740734537661,4.4732,131.15,131.06,0.04916733]
[1740734537860,12.1044,131.15,131.09,7.6339]
[1740734538271,7.6314,131.14,131.09,7.6339]
[1740734538460,4.4732,131.15,131.07,7.6349]
[1740734538664,0.05490893,131.13,131.1,0.05671467]
[1740734541170,7.6329,131.12,131.1,0.05671467]
[1740734541371,0.05490893,131.13,131.04,12.72]
[1740734541559,2.1294,131.14,131.06,7.6359]
[1740734541760,7.6336,131.11,131.06,7.6359]
[1740734542166,7.6336,131.11,131.02,111.42817725]
[1740734542661,0.054118,131.08,131.05,0.05758997]
[1740734543163,0.054118,131.08,131.06,7.6356]
[1740734543364,0.054118,131.08,131.05,0.05758997]
[1740734543671,0.054118,131.08,131.07,7.6354]
[1740734544071,0.054118,131.08,131.05,0.05758997]
[1740734544371,0.054118,131.08,131.05,7.69388997]
[1740734546766,0.054118,131.08,131.05,0.05758997]
[1740734546967,0.054118,131.08,131.07,7.6354]
[1740734547769,0.054118,131.08,131.05,0.05758997]
[1740734548574,0.054118,131.08,131.07,7.6354]
[1740734549486,1.8e-05,131.08,131.07,7.6354]
[1740734550082,1.8e-05,131.08,131.07,11.4554]
[1740734553090,1.8e-05,131.08,131.07,7.6354]
[1740734557393,1.8e-05,131.08,131.07,7.6354]
[1740734557793,1.8e-05,131.08,131.07,24.1754]
[1740734557990,2.1804,131.2,131.07,16.54]
[1740734558194,2.1804,131.2,131.07,12.72]
[1740734558390,2.1804,131.2,131.16,7.6298]
[1740734559091,0.05829926,131.19,131.17,7.68574651]
[1740734559288,0.05829926,131.19,131.17,0.05654651]
[1740734559489,4.4248,131.21,131.08,199.4076]
[1740734559690,0.05624649,131.19,131.18,7.6286]
[1740734559894,2.1656,131.21,131.08,199.4076]
[1740734560195,2.2762,131.23,131.2,7.6278]
[1740734560493,42.4093632,131.25,131.14,12.7]
[1740734560694,42.4093632,131.25,131.15,6.7051]
[1740734561294,6.6348,131.27,131.15,6.7051]
[1740734561689,6.6348,131.27,131.22,7.6262]
[1740734561897,0.05682647,131.22,131.15,6.7051]
[1740734562191,55.1093632,131.32,131.23,0.05179845]
[1740734562192,42.4093632,131.32,131.23,0.05179845]
[1740734562397,49.1406632,131.32,131.16,196.39521761]
[1740734562596,49.1406632,131.32,131.17,1.39521761]
[1740734562791,7.6216,131.31,131.16,196.52485513]
[1740734562995,49.1406632,131.32,131.16,196.52485513]
[1740734563192,56.7619632,131.32,131.24,7.6251]
[1740734563495,56.7619632,131.32,131.16,196.52485513]
[1740734563695,0.04918596,131.29,131.27,0.05765102]
[1740734563895,56.7619632,131.32,131.23,7.6259]
[1740734564096,0.05701679,131.29,131.27,0.04909378]
[1740734564689,7.6232,131.28,131.16,196.52485513]
[1740734564893,7.6232,131.28,131.16,1.52485513]
[1740734565093,7.6232,131.28,131.21,7.6272]
[1740734565297,7.6232,131.28,131.16,1.52485513]
[1740734565798,0.05366591,131.23,131.21,0.05744912]
[1740734565993,7.6232,131.28,131.21,0.05744912]
[1740734566199,0.0532862,131.23,131.21,0.05744912]
[1740734566393,7.6227,131.29,131.21,0.05744912]
[1740734566594,0.04915756,131.23,131.16,1.52485513]
[1740734566795,0.04915756,131.23,131.21,7.68488777]
[1740734566997,7.6227,131.29,131.21,7.6268]
[1740734567300,7.6227,131.29,131.21,7.67502752]
[1740734567501,0.05849543,131.26,131.21,7.6268]
[1740734567803,0.05849543,131.26,131.24,0.05664964]
[1740734569202,2.23779543,131.26,131.24,0.05664964]
[1740734569404,9.86219543,131.26,131.24,0.05664964]
[1740734569794,7.6249,131.25,131.24,0.05664964]
[1740734571199,9.86239543,131.26,131.24,0.05664964]
[1740734571705,2.23779543,131.26,131.24,0.05664964]
[1740734573204,4.36669543,131.26,131.24,0.05664964]
[1740734573405,4.36669543,131.26,131.15,117.78287575]
[1740734573605,4.3082,131.26,131.15,117.78287575]
[1740734573907,4.3082,131.26,131.2,7.6276]
[1740734574105,4.3082,131.26,131.15,117.78287575]
[1740734574106,11.9326,131.26,131.15,117.78287575]
[1740734574506,11.9326,131.26,131.19,0.05541043]
[1740734574507,0.05821802,131.22,131.19,0.05541043]
[1740734574904,0.05821802,131.22,131.21,7.6272]
[1740734580011,1.802e-05,131.22,131.21,7.6272]
[1740734586117,7.6188,131.36,131.21,16.52]
[1740734586415,6.8306,131.35,131.21,12.7]
[1740734586615,6.8306,131.35,131.22,6.4318]
[1740734586817,6.8306,131.35,131.22,201.4318]
[1740734587314,0.05151413,131.3,131.27,0.05701699]
[1740734587714,0.05151413,131.3,131.26,7.624]
[1740734587916,0.05151413,131.3,131.27,0.04940525]
[1740734588117,6.8306,131.35,131.27,0.04940525]
[1740734588319,0.04806733,131.29,131.27,0.04940525]
[1740734588519,6.8306,131.35,131.22,2.1501]
[1740734588712,0.05091017,131.29,131.27,0.05611589]
[1740734589113,6.8306,131.35,131.22,2.1501]
[1740734589318,0.04849042,131.29,131.27,0.04961516]
[1740734590021,0.04849042,131.29,131.28,7.6232]
[1740734591522,9.042e-05,131.29,131.28,7.6232]
[1740734592322,4.5178,131.35,131.34,7.6197]
[1740734592522,2.3179,131.35,131.34,7.6197]
[1740734592724,2.3179,131.35,131.32,7.6205]
[1740734593026,2.3179,131.35,131.22,197.1501]
[1740734593218,2.3179,131.35,131.23,1.39227291]
[1740734593418,2.3179,131.35,131.34,7.6197]
[1740734593615,1.794e-05,131.3,131.24,4.3179]
[1740734593820,2.3179,131.35,131.24,199.3179]
[1740734594418,4.5942,131.39,131.24,199.3179]
[1740734594722,292.13872641,131.48,131.25,2.9165835]
[1740734594920,3.37e-06,131.33,131.3,0.05458258]
[1740734595124,4.528,131.42,131.37,7.6176]
[1740734595323,4.528,131.42,131.31,12.68]
[1740734595619,4.528,131.42,131.32,6.6133]
[1740734595826,2.286,131.42,131.32,6.6133]
[1740734596032,2.529e-05,131.38,131.36,0.05253607]
[1740734596215,49.0782632,131.47,131.32,6.6133]
[1740734596415,49.0782632,131.47,131.33,1.39219939]
[1740734596625,6.6689,131.47,131.33,1.39219939]
[1740734596919,6.6689,131.47,131.33,196.39219939]
[1740734597127,6.6689,131.47,131.34,1.39219939]
[1740734597319,6.6689,131.47,131.42,7.6145]
[1740734597726,0.05570037,131.46,131.38,12.68]
[1740734598029,6.6689,131.47,131.43,7.6626816]
[1740734598525,0.04959891,131.46,131.44,7.6135]
[1740734598722,0.04959891,131.46,131.43,0.0486816]
[1740734599122,0.04959891,131.46,131.44,7.6134]
[1740734599324,0.04959891,131.46,131.43,0.0486816]
[1740734599827,0.04959891,131.46,131.44,7.6135]
[1740734600229,0.04959891,131.46,131.43,7.6627816]
[1740734600420,0.04959891,131.46,131.43,0.0486816]
[1740734600623,9.891e-05,131.46,131.45,7.6133]
[1740734601331,9.891e-05,131.46,131.45,24.0933]
[1740734602131,9.891e-05,131.46,131.45,20.2933]
[1740734602933,9.891e-05,131.46,131.45,24.0933]
[1740734603929,4.4571,131.56,131.52,7.609]
[1740734604429,4.4571,131.56,131.46,6.7658]
[1740734605023,4.4571,131.56,131.5,0.05442268]
[1740734605224,0.05450516,131.52,131.5,0.05442268]
[1740734605532,0.05450516,131.52,131.51,7.6099]
[1740734606130,5.16e-06,131.52,131.51,7.6099]
[1740734607634,5.16e-06,131.52,131.51,11.4099]
[1740734613830,6.8511,131.63,131.61,7.6038]
[1740734614435,4.6192,131.63,131.61,7.6038]
[1740734614936,4.6192,131.63,131.54,12.66]
[1740734615237,4.6192,131.63,131.62,7.6035]
[1740734615441,9.8032,131.69,131.62,7.6035]
[1740734615639,0.04844643,131.64,131.63,7.6027]
[1740734615835,4.5125,131.68,131.63,7.6027]
[1740734616029,0.05609652,131.65,131.63,7.6027]
[1740734616939,0.05609652,131.65,131.62,0.0484356]
[1740734617141,0.05609652,131.65,131.64,7.6024]
[1740734619141,0.05609652,131.65,131.62,0.0484356]
[1740734619541,0.05609652,131.65,131.54,127.55523121]
[1740734619939,4.5125,131.68,131.54,127.55523121]
[1740734620750,0.05687489,131.62,131.6,0.04945426]
[1740734621251,0.05188761,131.62,131.6,0.05044675]
[1740734621650,0.05188761,131.62,131.61,7.6041]
[1740734622652,0.05188761,131.62,131.6,0.05044675]
[1740734623745,0.05188761,131.62,131.61,7.6041]
[1740734624843,0.05188761,131.62,131.6,7.65494675]
[1740734625050,0.05188761,131.62,131.6,0.05044675]
[1740734625454,0.05188761,131.62,131.54,127.55523121]
[1740734625854,7.6013,131.66,131.54,127.55523121]
[1740734626255,7.6013,131.66,131.58,7.6058]
[1740734626653,0.04971555,131.63,131.61,0.04818581]
[1740734626859,0.04971555,131.63,131.58,7.6058]
[1740734627759,0.04971555,131.63,131.59,7.6052]
[1740734627954,0.04971555,131.63,131.59,7.65501445]
[1740734628155,7.6019,131.65,131.59,7.65501445]
[1740734628357,0.05232467,131.62,131.59,7.65501445]
[1740734629858,0.05232467,131.62,131.6,7.6045]
[1740734630058,0.05232467,131.62,131.6,4.5808]
[1740734630257,0.05232467,131.62,131.59,0.04981445]
[1740734630463,0.05232467,131.62,131.54,114.89523121]
[1740734630663,7.6024,131.64,131.54,114.89523121]
[1740734630958,12.66,131.66,131.61,7.604]
[1740734630959,20.2615,131.66,131.61,7.604]
[1740734631365,7.6019,131.65,131.61,7.604]
[1740734631551,7.66009456,131.65,131.62,0.05223562]
[1740734631756,7.66009456,131.65,131.6,7.6043]
[1740734631956,7.6019,131.65,131.6,7.6043]
[1740734632153,12.66,131.66,131.5,414.5]
[1740734632460,4.5125,131.68,131.51,1.38744216]
[1740734632663,4.5125,131.68,131.52,15.2182]
[1740734632963,4.156e-05,131.61,131.58,0.05686481]
[1740734633156,4.156e-05,131.61,131.59,12.66]
[1740734633352,3.91,131.75,131.6,5.1393]
[1740734633755,3.91,131.75,131.61,1.38402717]
[1740734633958,3.91,131.75,131.73,7.5971]
[1740734634252,7.99e-05,131.69,131.67,12.72799087]
[1740734634458,3.91,131.75,131.67,12.68]
[1740734635460,6.001e-05,131.72,131.7,0.04989112]
[1740734635664,6.001e-05,131.72,131.71,7.5983]
[1740734635961,6.001e-05,131.72,131.7,0.04989112]
[1740734636263,6.001e-05,131.72,131.71,7.5983]
[1740734637154,20.02422321,131.77,131.7,0.04989112]
[1740734637461,20.02422321,131.77,131.76,7.5954]
[1740734637661,3.8346,131.83,131.7,0.04989112]
[1740734637861,3.8346,131.83,131.69,3.2334]
[1740734638364,3.8346,131.83,131.76,7.5954]
[1740734638561,0.05452637,131.77,131.76,7.5954]
[1740734638761,3.8346,131.83,131.7,116.33970835]
[1740734638965,0.04896628,131.78,131.75,0.05348613]
[1740734639261,0.04896628,131.78,131.7,116.33970835]
[1740734639262,41.77069232,131.87,131.76,13.08]
[1740734639564,41.77069232,131.87,131.77,1.7233]
[1740734640063,41.77069232,131.87,131.8,7.5929]
[1740734640263,41.77069232,131.87,131.77,1.7233]
[1740734640466,0.05571248,131.85,131.82,0.05861788]
[1740734641666,84.81872641,131.88,131.83,13.42]
[1740734641867,88.62072641,131.95,131.83,129.6521484]
[1740734642065,84.81872641,131.95,131.83,336.1721484]
[1740734642663,84.81872641,131.95,131.83,322.7521484]
[1740734642864,0.05158828,131.9,131.88,0.05570815]
[1740734643166,5.6974,131.94,131.84,1.51699029]
[1740734643367,5.6974,131.94,131.83,116.2321484]
[1740734643865,5.6974,131.94,131.71,13.52]
[1740734644065,7.588,131.89,131.68,3.2936]
[1740734644367,0.05489457,131.83,131.81,0.05615065]
[1740734644568,0.05489457,131.83,131.7,13.68]
[1740734644873,13.68,131.89,131.7,13.68]
[1740734645167,13.68,131.89,131.68,3.2936]
[1740734645168,7.5897,131.87,131.74,7.5961]
[1740734645467,1.8277,131.86,131.69,13.7]
[1740734645668,1.8277,131.86,131.74,7.5966]
[1740734645868,0.0563965,131.79,131.76,0.0566974]
[1740734646162,0.0563965,131.79,131.69,130.04757158]
[1740734646368,1.8277,131.86,131.69,140.46883209]
[1740734646569,1.8277,131.86,131.76,0.05430393]
[1740734646966,1.8277,131.86,131.76,13.78]
[1740734647366,1.8277,131.86,131.7,1.8478]
[1740734647567,1.8277,131.86,131.71,13.76]
[1740734648066,190.0,131.85,131.71,13.76]
[1740734648365,0.05540136,131.8,131.77,0.05021611]
[1740734648564,0.05540136,131.8,131.71,13.76]
[1740734648765,191.9534,131.84,131.71,13.76]
[1740734648964,124.0,131.83,131.69,10.42126051]
[1740734649168,7.5938,131.79,131.69,18.02076051]
[1740734649364,191.9868,131.78,131.69,7.5995]
[1740734649569,1.9868,131.78,131.63,1.8164]
[1740734649764,0.05512681,131.75,131.72,0.04819995]
[1740734649974,0.05512681,131.75,131.64,1.51929504]
[1740734650263,1.9199,131.77,131.64,1.51929504]
[1740734651071,9.515,131.77,131.67,7.6001]
[1740734651272,0.04945869,131.72,131.69,0.05621632]
[1740734651672,0.04945869,131.72,131.64,1.51929504]
[1740734651874,0.04945869,131.72,131.61,13.76]
[1740734652067,1.9199,131.77,131.69,0.05354514]
[1740734652372,1.9199,131.77,131.61,13.76]
[1740734652674,0.05659221,131.68,131.61,13.76]
[1740734652971,0.05659221,131.68,131.59,5.1627]
[1740734653376,1.9199,131.77,131.62,0.05353068]
[1740734653578,1.8917,131.76,131.62,0.05353068]
[1740734653783,1.8917,131.76,131.65,7.6013]
[1740734654079,0.04882977,131.7,131.65,7.6013]
[1740734654279,0.04882977,131.7,131.68,0.05691059]
[1740734654478,0.04882977,131.7,131.65,7.6013]
[1740734654778,0.04882977,131.7,131.59,1.8164]
[1740734655173,190.0,131.75,131.59,1.8164]
[1740734655679,0.05292125,131.68,131.66,0.04944562]
[1740734655880,0.05292125,131.68,131.67,7.6006]
[1740734656080,190.0,131.75,131.59,1.8164]
[1740734656283,1.8917,131.76,131.59,1.8164]
[1740734656483,1.8917,131.76,131.66,0.05587344]
[1740734656484,0.05009616,131.69,131.66,0.05587344]
[1740734656883,1.8917,131.76,131.63,13.7]
[1740734657072,7.597,131.74,131.65,7.6017]
[1740734657272,0.05536807,131.69,131.66,0.05171467]
[1740734657782,0.05536807,131.69,131.63,13.7]
[1740734658080,0.05536807,131.69,131.66,0.05276191]
[1740734659186,0.05536807,131.69,131.66,7.65356191]
[1740734659380,0.05536807,131.69,131.66,0.05276191]
[1740734659688,0.05536807,131.69,131.67,7.6005]
[1740734660577,0.05536807,131.69,131.66,0.05276191]
[1740734661281,0.05536807,131.69,131.66,7.65386191]
[1740734661484,0.05536807,131.69,131.66,0.05276191]
[1740734661982,0.05536807,131.69,131.67,7.6002]
[1740734663579,190.0,131.68,131.56,116.40726261]
[1740734663785,7.6017,131.66,131.56,116.40726261]
[1740734663983,3.9019,131.67,131.57,7.6062]
[1740734664381,3.9019,131.67,131.56,116.40726261]
[1740734664582,3.9019,131.67,131.56,124.01406261]
[1740734664775,3.9019,131.67,131.56,7.6068]